lending/lending_fUSD_20260330
["ID","MTS","AMOUNT","RATE_DAILY","PERIOD"]
[419080671,1774845047540,-361.366268,0.00014278,2]
[419080672,1774845047551,-361.366268,0.00014278,2]
[419080673,1774845047561,-361.366268,0.00014278,2]
[419080674,1774845047572,-1000.0,0.00014301,2]
[419080675,1774845047582,-1000.0,0.00014302,2]
[419080676,1774845047593,-1000.0,0.00014313,2]
[419080677,1774845047605,-1000.0,0.00014327,2]
[419080678,1774845047615,-166.66,0.00014334,2]
[419080679,1774845047625,-402.61,0.00014337,2]
[419080680,1774845047636,-385.35,0.00014337,2]
[419080681,1774845047646,-394.57333355,0.00014337,2]
[419080682,1774845047657,-4800.0,0.00014377,2]
[419080683,1774845047668,-1646.9,0.00014384,2]
[419080684,1774845047678,-1000.0,0.00014385,2]
[419080685,1774845047689,-150.0,0.00014388,2]
[419080686,1774845047699,-250.0,0.00014394,2]
[419080687,1774845047709,-250.0,0.00014394,2]
[419080688,1774845047719,-250.0,0.00014394,2]
[419080689,1774845047729,-250.0,0.00014394,2]
[419080690,1774845047740,-250.0,0.00014394,2]
[419080691,1774845047750,-250.0,0.00014394,2]
[419080692,1774845047759,-250.0,0.00014394,2]
[419080693,1774845047769,-250.0,0.00014394,2]
[419080694,1774845047779,-183.0,0.00014394,2]
[419080695,1774845047790,-151.0,0.00014409,2]
[419080696,1774845047800,-189.213513,0.00014409,2]
[419080697,1774845047811,-151.0,0.00014409,2]
[419080698,1774845047820,-151.0,0.00014409,2]
[419080699,1774845047830,-151.0,0.00014409,2]
[419080700,1774845047840,-151.0,0.00014409,2]
[419080701,1774845047851,-151.0,0.00014409,2]
[419080702,1774845047861,-151.0,0.00014409,2]
[419080703,1774845047871,-151.0,0.00014409,2]
[419080704,1774845047881,-151.0,0.00014409,2]
[419080705,1774845047891,-647.839142,0.00014409,2]
[419080706,1774845047901,-647.839142,0.00014409,2]
[419080707,1774845047912,-647.839142,0.00014409,2]
[419080708,1774845047922,-647.839142,0.00014409,2]
[419080709,1774845047934,-1000.0,0.00014418,2]
[419080710,1774845047945,-150.0,0.00014423,2]
[419080711,1774845047954,-150.0,0.00014423,2]
[419080712,1774845047964,-150.0,0.00014423,2]
[419080713,1774845047974,-150.0,0.00014423,2]
[419080714,1774845047985,-150.0,0.00014423,2]
[419080715,1774845047997,-150.0,0.00014423,2]
[419080716,1774845048008,-150.0,0.00014423,2]
[419080717,1774845048019,-150.0,0.00014423,2]
[419080718,1774845048029,-183.0,0.00014423,2]
[419080719,1774845048040,-13215.00892706,0.00014433,2]
[419080720,1774845048051,-195.79,0.00014445,2]
[419080721,1774845048062,-151.0,0.00014459,2]
[419080722,1774845048073,-151.0,0.00014459,2]
[419080723,1774845048084,-152.0,0.00014464,9]
[419080724,1774845048094,-150.0,0.00014483,2]
[419080725,1774845048105,-150.0,0.00014495,2]
[419080726,1774845048115,-151.0,0.00014526,2]
[419080727,1774845048125,-1592.87721993,0.00014526,2]
[419080728,1774845048135,-200.0,0.00014526,2]
[419080729,1774845048145,-194.72792766,0.00014526,2]
[419080730,1774845048155,-829.12830338,0.00014526,2]
[419080731,1774845048165,-1000.0,0.00014528,2]
[419080732,1774845048175,-1000.0,0.00014534,2]
[419080733,1774845048185,-195.79,0.00014557,2]
[419080734,1774845048196,-1000.0,0.00014573,2]
[419080735,1774845048206,-2000.0,0.00014579,2]
[419080736,1774845048216,-1000.0,0.00014579,2]
[419080737,1774845048226,-1000.0,0.00014603,2]
[419080738,1774845048235,-448.3507914,0.00014613,2]
[419080739,1774845048246,-152.0,0.00014666,10]
[419080740,1774845048255,-1000.0,0.00014669,2]
[419080741,1774845048265,-18358.23144477,0.00014672,2]
[419080742,1774845048275,-150.0,0.00014695,2]
[419080743,1774845048285,-315.0,0.00014699,2]
[419080744,1774845048294,-315.0,0.00014704,2]
[419080745,1774845048304,-315.0,0.00014719,2]
[419080746,1774845048314,-150.0,0.00014757,2]
[419080747,1774845048324,-1000.0,0.00014758,2]
[419080748,1774845048334,-247.68819331,0.00014778,2]
[419080749,1774845048344,-150.0,0.00014789,2]
[419080750,1774845048355,-933.76132486,0.00014796,2]
[419080751,1774845048365,-166.66,0.00014807,2]
[419080752,1774845048375,-502.0,0.00014822,2]
[419080753,1774845048386,-500.0,0.00014822,2]
[419080754,1774845048397,-150.0,0.00014822,2]
[419080755,1774845048407,-315.0,0.00014824,2]
[419080756,1774845048417,-1000.0,0.00014848,2]
[419080757,1774845048433,-1000.0,0.00014854,2]
[419080758,1774845048448,-152.0,0.00014869,11]
[419080759,1774845048459,-161.0,0.00014882,2]
[419080760,1774845048469,-315.0,0.00014882,2]
[419080761,1774845048479,-1000.0,0.00014884,2]
[419080762,1774845048489,-250.0,0.00014892,2]
[419080763,1774845048499,-150.0,0.00014892,2]
[419080764,1774845048509,-150.0,0.00014892,2]
[419080765,1774845048519,-150.0,0.00014892,2]
[419080766,1774845048530,-150.0,0.00014892,2]
[419080767,1774845048542,-150.0,0.00014892,2]
[419080768,1774845048553,-150.0,0.00014892,2]
[419080769,1774845048563,-150.0,0.00014892,2]
[419080770,1774845048574,-150.0,0.00014892,2]
[419080771,1774845048585,-150.0,0.00014922,2]
[419080772,1774845048596,-1000.0,0.00014954,2]
[419080773,1774845048607,-315.0,0.00014957,2]
[419080774,1774845048618,-2803.95268797,0.00014957,2]
[419080775,1774845048629,-1000.0,0.0001497,2]
[419080776,1774845048640,-315.0,0.00014976,2]
[419080777,1774845048651,-315.0,0.0001498,2]
[419080778,1774845048661,-300.0,0.00015,2]
[419080779,1774845048672,-150.0,0.00015001,2]
[419080780,1774845048682,-150.0,0.00015005,2]
[419080781,1774845048693,-4722.322,0.00015023,2]
[419080782,1774845048703,-227.496,0.00015023,2]
[419080783,1774845048714,-227.707439,0.00015055,2]
[419080784,1774845048723,-2909.5,0.00015057,2]
[419080785,1774845048735,-26206.27,0.00015057,2]
[419080786,1774845048746,-1795.46,0.00015057,2]
[419080787,1774845048756,-5493.81,0.00015057,2]
[419080788,1774845048767,-1646.9,0.00015068,2]
[419080789,1774845048778,-1000.0,0.0001507,2]
[419080790,1774845048789,-152.0,0.00015071,12]
[419080791,1774845048800,-151.0,0.00015074,2]
[419080792,1774845048811,-1651.81367706,0.00015074,2]
[419080793,1774845048822,-200.0,0.00015074,2]
[419080794,1774845048833,-201.93286099,0.00015074,2]
[419080795,1774845048843,-859.80605061,0.00015074,2]
[419080796,1774845048855,-150.0,0.00015086,2]
[419080797,1774845048865,-315.0,0.00015109,2]
[419080798,1774845048876,-482.0,0.00015121,2]
[419080799,1774845048886,-695.0,0.00015121,2]
[419080800,1774845048895,-150.0,0.00015128,2]
[419080801,1774845048905,-1000.0,0.00015135,2]
[419080802,1774845048915,-1256.0,0.00015143,2]
[419080803,1774845048924,-315.0,0.00015145,2]
[419080804,1774845048934,-350.0,0.00015145,2]
[419080805,1774845048945,-150.0,0.00015146,2]
[419080806,1774845048955,-1038.23561179,0.00015153,2]
[419080807,1774845048964,-315.0,0.00015157,2]
[419080808,1774845048974,-315.0,0.00015162,2]
[419080809,1774845048983,-943.0,0.00015162,2]
[419080810,1774845048994,-1000.0,0.00015174,2]
[419080811,1774845049005,-150.0,0.00015177,2]
[419080812,1774845049015,-1000.0,0.0001518,2]
[419080813,1774845049025,-1000.0,0.00015205,2]
[419080814,1774845049035,-10000.0,0.00015205,2]
[419080815,1774845049046,-1209.81286609,0.00015214,2]
[419080816,1774845049057,-1000.0,0.00015214,2]
[419080817,1774845049070,-1000.0,0.00015234,2]
[419080818,1774845049081,-315.0,0.00015262,2]
[419080819,1774845049094,-1000.0,0.00015264,2]
[419080820,1774845049103,-315.0,0.00015267,2]
[419080821,1774845049113,-315.0,0.00015273,2]
[419080822,1774845049349,-152.0,0.00015274,13]
[419080823,1774845049359,-166.66,0.0001528,2]
[419080824,1774845049368,-315.0,0.00015282,2]
[419080825,1774845049377,-1000.0,0.00015285,2]
[419080826,1774845049387,-350.0,0.00015286,2]
[419080827,1774845049396,-18358.23144477,0.00015286,2]
[419080828,1774845049405,-1000.0,0.00015288,2]
[419080829,1774845049414,-1000.0,0.00015298,2]
[419080830,1774845049424,-1000.0,0.00015312,2]
[419080831,1774845049433,-350.0,0.00015335,2]
[419080832,1774845049443,-247.68819331,0.00015339,2]
[419080833,1774845049451,-1000.0,0.00015372,2]
[419080834,1774845049460,-1000.0,0.00015386,2]
[419080835,1774845049470,-161.0,0.000154,2]
[419080836,1774845049479,-150.0,0.00015403,2]
[419080837,1774845049488,-1256.0,0.00015413,2]
[419080838,1774845049497,-350.0,0.00015413,2]
[419080839,1774845049507,-1000.0,0.00015417,2]
[419080840,1774845049516,-486.83,0.00015421,2]
[419080841,1774845049525,-1000.0,0.00015427,2]
[419080842,1774845049534,-1000.0,0.00015431,2]
[419080843,1774845049543,-1000.0,0.00015448,2]
[419080844,1774845049552,-8240.7,0.00015471,2]
[419080845,1774845049561,-152.0,0.00015476,14]
[419080846,1774845049570,-444.9049,0.000155,22]
[419080847,1774845049579,-1000.0,0.00015504,2]
[419080848,1774845049589,-4000.0,0.00015507,2]
[419080849,1774845049598,-1000.0,0.00015507,2]
[419080850,1774845049607,-1000.0,0.00015512,2]
[419080851,1774845049617,-1256.0,0.00015518,2]
[419080852,1774845049628,-1000.0,0.00015524,2]
[419080853,1774845049638,-150.0,0.0001553,2]
[419080854,1774845049648,-1000.0,0.00015534,2]
[419080855,1774845049658,-1256.0,0.00015545,2]
[419080856,1774845049669,-1000.0,0.00015576,2]
[419080857,1774845049680,-1000.0,0.00015582,2]
[419080858,1774845049690,-1256.0,0.00015587,2]
[419080859,1774845049699,-151.0,0.00015587,2]
[419080860,1774845049709,-151.0,0.00015587,2]
[419080861,1774845049718,-1000.0,0.0001559,2]
[419080862,1774845049728,-255.5783311,0.00015591,7]
[419080863,1774845049737,-150.0,0.00015591,7]
[419080864,1774845049747,-350.0,0.00015592,2]
[419080865,1774845049756,-712.2,0.00015599,2]
[419080866,1774845049765,-1000.0,0.00015602,2]
[419080867,1774845049775,-500.0,0.00015604,2]
[419080868,1774845049784,-350.0,0.0001561,2]
[419080869,1774845049793,-1000.0,0.00015614,2]
[419080870,1774845049802,-1000.0,0.00015614,2]
[419080871,1774845049810,-1000.0,0.00015614,2]
[419080872,1774845049820,-1000.0,0.00015614,2]
[419080873,1774845049829,-1000.0,0.00015614,2]
[419080874,1774845049838,-1000.0,0.00015614,2]
[419080875,1774845049847,-1000.0,0.00015614,2]
[419080876,1774845049856,-1000.0,0.00015614,2]
[419080877,1774845049865,-1000.0,0.00015614,2]
[419080878,1774845049874,-1000.0,0.00015614,2]
[419080879,1774845049883,-1000.0,0.00015614,2]
[419080880,1774845049892,-1000.0,0.00015614,2]
[419080881,1774845049900,-1000.0,0.00015614,2]
[419080882,1774845049910,-1000.0,0.00015614,2]
[419080883,1774845049919,-1000.0,0.00015614,2]
[419080884,1774845049928,-1000.0,0.00015614,2]
[419080885,1774845049937,-1000.0,0.00015614,2]
[419080886,1774845049946,-1000.0,0.00015614,2]
[419080887,1774845049955,-1000.0,0.00015614,2]
[419080888,1774845049964,-1000.0,0.00015614,2]
[419080889,1774845049973,-1000.0,0.00015614,2]
[419080890,1774845049982,-489.35821921,0.00015614,2]
[419080891,1774845049992,-151.0,0.00015614,2]
[419080892,1774845050002,-361.366268,0.00015614,2]
[419080893,1774845050011,-361.366268,0.00015614,2]
[419080894,1774845050021,-151.0,0.00015614,2]
[419080895,1774845050030,-361.366268,0.00015614,2]
[419080896,1774845050040,-151.0,0.00015614,2]
[419080897,1774845050049,-361.366268,0.00015614,2]
[419080898,1774845050058,-151.0,0.00015614,2]
[419080899,1774845050067,-151.0,0.00015614,2]
[419080900,1774845050079,-151.0,0.00015614,2]
[419080901,1774845050088,-151.0,0.00015614,2]
[419080902,1774845050099,-151.0,0.00015614,2]
[419080903,1774845050109,-151.0,0.00015614,2]
[419080904,1774845050119,-647.839142,0.00015614,2]
[419080905,1774845050129,-647.839142,0.00015614,2]
[419080906,1774845050139,-647.839142,0.00015614,2]
[419080907,1774845050149,-647.839142,0.00015614,2]
[419080908,1774845050158,-151.0,0.00015614,2]
[419080909,1774845050169,-2000.0,0.00015614,2]
[419080910,1774845050178,-2000.0,0.00015614,2]
[419080911,1774845050188,-2000.0,0.00015614,2]
[419080912,1774845050199,-2000.0,0.00015614,2]
[419080913,1774845050209,-2000.0,0.00015614,2]
[419080914,1774845050219,-2000.0,0.00015614,2]
[419080915,1774845050228,-599.60298507,0.00015621,2]
[419080916,1774845050237,-151.0,0.00015622,2]
[419080917,1774845050247,-200.0,0.00015622,2]
[419080918,1774845050257,-209.40437684,0.00015622,2]
[419080919,1774845050266,-891.61887448,0.00015622,2]
[419080920,1774845050276,-1256.0,0.00015623,2]
[419080921,1774845050285,-1256.0,0.00015629,2]
[419080922,1774845050294,-500.0,0.00015631,2]
[419080923,1774845050304,-2808.0,0.00015641,2]
[419080924,1774845050313,-182.0,0.00015644,2]
[419080925,1774845050322,-1600.0,0.00015656,2]
[419080926,1774845050332,-350.0,0.00015668,2]
[419080927,1774845050340,-152.0,0.00015678,15]
[419080928,1774845050350,-6909.31013267,0.0001568,2]
[419080929,1774845050359,-1256.0,0.00015681,2]
[419080930,1774845050368,-571.029725,0.0001572,2]
[419080931,1774845050377,-571.029725,0.0001572,2]
[419080932,1774845050386,-571.029725,0.0001572,2]
[419080933,1774845050395,-571.029725,0.0001572,2]
[419080934,1774845050405,-2803.0,0.0001572,2]
[419080935,1774845050414,-161.0,0.0001572,2]
[419080936,1774845050423,-1549.0,0.0001572,2]
[419080937,1774845050432,-366.0,0.00015753,2]
[419080938,1774845050441,-366.0,0.00015753,2]
[419080939,1774845050451,-166.66,0.00015753,2]
[419080940,1774845050460,-1646.9,0.00015753,2]
[419080941,1774845050470,-500.0,0.00015772,2]
[419080942,1774845050479,-1448.27720956,0.00015865,7]
[419080943,1774845050488,-152.0,0.00015881,16]
[419080944,1774845050498,-273.96816277,0.0001589,2]
[419080945,1774845050507,-2000.0,0.0001589,2]
[419080946,1774845050517,-4000.0,0.00015895,2]
[419080947,1774845050527,-227.707439,0.00015897,2]
[419080948,1774845050536,-16862.4154529,0.000159,2]
[419080949,1774845050545,-1040.84,0.000159,2]
[419080950,1774845050555,-151.0,0.000159,2]
[419080951,1774845050564,-151.0,0.000159,2]
[419080952,1774845050573,-151.0,0.000159,2]
[419080953,1774845050583,-151.0,0.000159,2]
[419080954,1774845050594,-247.68819331,0.000159,2]
[419080955,1774845050605,-150.0,0.000159,2]
[419080956,1774845050614,-150.0,0.000159,2]
[419080957,1774845050624,-150.0,0.000159,2]
[419080958,1774845050633,-150.25436485,0.000159,2]
[419080959,1774845050642,-18358.23144477,0.000159,2]
[419080960,1774845050652,-150.0,0.000159,2]
[419080961,1774845050661,-448.3507914,0.000159,2]
[419080962,1774845050671,-150.0,0.000159,2]
[419080963,1774845050680,-472.91804058,0.000159,2]
[419080964,1774845050690,-16089.57691148,0.000159,2]
[419080965,1774845050700,-709.95741278,0.000159,2]
[419080966,1774845050710,-2803.95268797,0.000159,2]
[419080967,1774845050720,-200.00000001,0.0001595,2]
[419080968,1774845050730,-161.0,0.00015961,2]
[419080969,1774845050742,-500.0,0.00015973,2]
[419080970,1774845050751,-500.0,0.00015973,2]
[419080971,1774845050761,-500.0,0.00015973,2]
[419080972,1774845050771,-221.78565646,0.00015973,2]
[419080973,1774845050781,-200.0,0.0001599,2]
[419080974,1774845050790,-182.05547605,0.0001599,2]
[419080975,1774845050800,-182.05547605,0.0001599,2]
[419080976,1774845050810,-227.707439,0.00015997,2]
[419080977,1774845050820,-712.2,0.00015998,2]
[419080978,1774845050830,-666.0,0.00015999,2]
[419080979,1774845050840,-666.0,0.00015999,2]
[419080980,1774845050849,-666.0,0.00015999,2]
[419080981,1774845050859,-500.0,0.00015999,2]
[419080982,1774845050868,-500.0,0.00015999,2]
[419080983,1774845050878,-505.17997071,0.00015999,2]
[419080984,1774845050887,-500.0,0.00015999,2]
[419080985,1774845050896,-500.0,0.00015999,2]
[419080986,1774845050906,-490.17780532,0.00015999,2]
[419080987,1774845050915,-500.0,0.00015999,2]
[419080988,1774845050925,-500.0,0.00015999,2]
[419080989,1774845050934,-500.0,0.00015999,2]
[419080990,1774845050944,-500.0,0.00015999,2]
[419080991,1774845050953,-500.0,0.00015999,2]
[419080992,1774845050962,-500.0,0.00015999,2]
[419080993,1774845050971,-500.0,0.00015999,2]
[419080994,1774845050982,-500.0,0.00015999,2]
[419080995,1774845050992,-500.0,0.00015999,2]
[419080996,1774845051003,-500.0,0.00015999,2]
[419080997,1774845051012,-500.0,0.00015999,2]
[419080998,1774845051024,-500.0,0.00015999,2]
[419080999,1774845051034,-536.73492766,0.00015999,2]
[419081000,1774845051044,-500.0,0.00015999,2]
[419081001,1774845051053,-500.0,0.00015999,2]
[419081002,1774845051062,-500.0,0.00015999,2]
[419081003,1774845051071,-500.0,0.00015999,2]
[419081004,1774845051081,-500.0,0.00015999,2]
[419081005,1774845051090,-500.0,0.00015999,2]
[419081006,1774845051099,-500.0,0.00015999,2]
[419081007,1774845051108,-500.0,0.00015999,2]
[419081008,1774845051118,-500.0,0.00015999,2]
[419081009,1774845051127,-283.92,0.00015999,2]
[419081011,1774845051137,-1061.69,0.00015999,2]
[419081012,1774845051146,-1061.69,0.00015999,2]
[419081014,1774845051155,-1061.69,0.00015999,2]
[419081015,1774845051164,-1061.69,0.00015999,2]
[419081016,1774845051173,-1061.69,0.00015999,2]
[419081017,1774845051183,-1061.69,0.00015999,2]
[419081018,1774845051193,-1061.69,0.00015999,2]
[419081019,1774845051202,-1061.77981576,0.00015999,2]
[419081020,1774845051211,-500.0,0.00015999,2]
[419081021,1774845051221,-500.0,0.00015999,2]
[419081022,1774845051230,-500.0,0.00015999,2]
[419081023,1774845051240,-500.0,0.00015999,2]
[419081024,1774845051249,-500.0,0.00015999,2]
[419081025,1774845051258,-500.0,0.00015999,2]
[419081026,1774845051267,-500.0,0.00015999,2]
[419081027,1774845051276,-809.41,0.00015999,2]
[419081028,1774845051285,-500.0,0.00015999,2]
[419081029,1774845051295,-809.41,0.00015999,2]
[419081030,1774845051304,-500.0,0.00015999,2]
[419081031,1774845051313,-809.41,0.00015999,2]
[419081032,1774845051322,-500.0,0.00015999,2]
[419081033,1774845051331,-809.41,0.00015999,2]
[419081034,1774845051340,-500.0,0.00015999,2]
[419081035,1774845051349,-504.15891548,0.00015999,2]
[419081036,1774845051358,-809.41,0.00015999,2]
[419081037,1774845051367,-809.41,0.00015999,2]
[419081038,1774845051376,-809.41,0.00015999,2]
[419081039,1774845051386,-809.41,0.00015999,2]
[419081040,1774845051395,-809.41,0.00015999,2]
[419081041,1774845051404,-809.41,0.00015999,2]
[419081042,1774845051413,-809.41,0.00015999,2]
[419081043,1774845051422,-809.41,0.00015999,2]
[419081044,1774845051431,-809.41,0.00015999,2]
[419081045,1774845051440,-809.41,0.00015999,2]
[419081046,1774845051449,-809.41,0.00015999,2]
[419081047,1774845051458,-809.41,0.00015999,2]
[419081048,1774845051467,-809.41,0.00015999,2]
[419081049,1774845051476,-809.50855932,0.00015999,2]
[419081050,1774845051485,-525.61,0.00015999,2]
[419081051,1774845051494,-525.61,0.00015999,2]
[419081052,1774845051503,-525.61,0.00015999,2]
[419081053,1774845051512,-525.61,0.00015999,2]
[419081054,1774845051521,-525.61,0.00015999,2]
[419081055,1774845051530,-525.61,0.00015999,2]
[419081056,1774845051539,-525.61,0.00015999,2]
[419081057,1774845051548,-525.61,0.00015999,2]
[419081058,1774845051557,-525.61,0.00015999,2]
[419081059,1774845051567,-525.61,0.00015999,2]
[419081060,1774845051575,-525.61,0.00015999,2]
[419081061,1774845051584,-525.61,0.00015999,2]
[419081062,1774845051593,-525.61,0.00015999,2]
[419081063,1774845051602,-525.61,0.00015999,2]
[419081064,1774845051611,-525.61,0.00015999,2]
[419081065,1774845051620,-525.61,0.00015999,2]
[419081066,1774845051629,-525.61,0.00015999,2]
[419081067,1774845051638,-525.80511373,0.00015999,2]
[419081068,1774845051647,-500.0,0.00015999,2]
[419081069,1774845051656,-500.0,0.00015999,2]
[419081070,1774845051665,-540.54,0.00015999,2]
[419081071,1774845051674,-540.54,0.00015999,2]
[419081072,1774845051683,-540.54,0.00015999,2]
[419081073,1774845051692,-540.54,0.00015999,2]
[419081074,1774845051701,-540.54,0.00015999,2]
[419081075,1774845051711,-540.54,0.00015999,2]
[419081076,1774845051721,-540.54,0.00015999,2]
[419081077,1774845051730,-540.54,0.00015999,2]
[419081078,1774845051739,-540.54,0.00015999,2]
[419081079,1774845051748,-540.54,0.00015999,2]
[419081080,1774845051759,-540.54,0.00015999,2]
[419081081,1774845051769,-540.54,0.00015999,2]
[419081082,1774845051780,-540.54,0.00015999,2]
[419081083,1774845051789,-540.54,0.00015999,2]
[419081084,1774845051799,-540.54,0.00015999,2]
[419081085,1774845051808,-540.54,0.00015999,2]
[419081086,1774845051819,-540.54,0.00015999,2]
[419081087,1774845051829,-540.7791628,0.00015999,2]
[419081088,1774845051839,-500.0,0.00015999,2]
[419081089,1774845051848,-500.0,0.00015999,2]
[419081090,1774845051857,-500.0,0.00015999,2]
[419081091,1774845051866,-500.0,0.00015999,2]
[419081092,1774845051875,-500.0,0.00015999,2]
[419081093,1774845051884,-500.0,0.00015999,2]
[419081094,1774845051893,-500.0,0.00015999,2]
[419081095,1774845051902,-500.0,0.00015999,2]
[419081096,1774845051911,-500.0,0.00015999,2]
[419081097,1774845051920,-572.88055052,0.00015999,2]
[419081098,1774845051929,-1133.93,0.00015999,2]
[419081099,1774845051938,-1133.93,0.00015999,2]
[419081100,1774845051947,-1133.93,0.00015999,2]
[419081101,1774845051956,-1133.93,0.00015999,2]
[419081102,1774845051965,-1133.93,0.00015999,2]
[419081103,1774845051974,-1133.93,0.00015999,2]
[419081104,1774845051983,-1133.93,0.00015999,2]
[419081105,1774845051992,-1133.93,0.00015999,2]
[419081106,1774845052001,-609.94,0.00015999,2]
[419081107,1774845052010,-1133.93,0.00015999,2]
[419081108,1774845052021,-609.94,0.00015999,2]
[419081109,1774845052033,-1133.93,0.00015999,2]
[419081110,1774845052043,-609.94,0.00015999,2]
[419081111,1774845052052,-1133.93,0.00015999,2]
[419081112,1774845052063,-609.94,0.00015999,2]
[419081113,1774845052077,-1133.93,0.00015999,2]
[419081114,1774845052087,-609.94,0.00015999,2]
[419081115,1774845052097,-1133.93,0.00015999,2]
[419081116,1774845052109,-609.94,0.00015999,2]
[419081117,1774845052119,-1133.93,0.00015999,2]
[419081118,1774845052131,-609.94,0.00015999,2]
[419081119,1774845052142,-609.94,0.00015999,2]
[419081120,1774845052152,-1133.93,0.00015999,2]
[419081121,1774845052160,-609.94,0.00015999,2]
[419081122,1774845052172,-1133.93,0.00015999,2]
[419081123,1774845052181,-609.94,0.00015999,2]
[419081124,1774845052190,-1133.93,0.00015999,2]
[419081125,1774845052200,-609.94,0.00015999,2]
[419081126,1774845052210,-1133.96887303,0.00015999,2]
[419081127,1774845052220,-609.94,0.00015999,2]
[419081128,1774845052230,-609.94,0.00015999,2]
[419081129,1774845052239,-609.94,0.00015999,2]
[419081130,1774845052249,-609.94,0.00015999,2]
[419081131,1774845052258,-609.94,0.00015999,2]
[419081132,1774845052267,-609.94,0.00015999,2]
[419081133,1774845052277,-609.99477964,0.00015999,2]
[419081134,1774845052287,-500.0,0.00015999,2]
[419081135,1774845052297,-500.0,0.00015999,2]
[419081136,1774845052306,-500.0,0.00015999,2]
[419081137,1774845052316,-500.0,0.00015999,2]
[419081138,1774845052325,-500.0,0.00015999,2]
[419081139,1774845052334,-500.0,0.00015999,2]
[419081140,1774845052344,-500.0,0.00015999,2]
[419081141,1774845052354,-500.0,0.00015999,2]
[419081142,1774845052365,-500.0,0.00015999,2]
[419081143,1774845052376,-500.0,0.00015999,2]
[419081144,1774845052387,-500.0,0.00015999,2]
[419081145,1774845052396,-500.0,0.00015999,2]
[419081146,1774845052405,-500.0,0.00015999,2]
[419081147,1774845052419,-500.0,0.00015999,2]
[419081148,1774845052431,-152.47470356,0.00015999,2]
[419081149,1774845052440,-500.0,0.00015999,2]
[419081150,1774845052450,-500.0,0.00015999,2]
[419081151,1774845052459,-500.0,0.00015999,2]
[419081152,1774845052469,-500.0,0.00015999,2]
[419081153,1774845052479,-500.0,0.00015999,2]
[419081154,1774845052488,-500.0,0.00015999,2]
[419081155,1774845052498,-191.17310529,0.00015999,2]
[419081156,1774845052507,-500.0,0.00015999,2]
[419081157,1774845052516,-500.0,0.00015999,2]
[419081158,1774845052527,-500.0,0.00015999,2]
[419081159,1774845052536,-500.0,0.00015999,2]
[419081160,1774845052546,-500.0,0.00015999,2]
[419081161,1774845052555,-500.0,0.00015999,2]
[419081162,1774845052565,-500.0,0.00015999,2]
[419081163,1774845052575,-500.0,0.00015999,2]
[419081164,1774845052584,-500.0,0.00015999,2]
[419081165,1774845052594,-500.0,0.00015999,2]
[419081166,1774845052603,-500.0,0.00015999,2]
[419081167,1774845052613,-500.0,0.00015999,2]
[419081168,1774845052623,-500.0,0.00015999,2]
[419081169,1774845052632,-500.0,0.00015999,2]
[419081170,1774845052641,-500.0,0.00015999,2]
[419081171,1774845052651,-500.0,0.00015999,2]
[419081172,1774845052660,-246.04005081,0.00015999,2]